[Event "Turkish Youth Championship 2024"]
[Site "Samsun"]
[Date "2024.05.19"]
[Round "3"]
[White "Turgut, Hakan"]
[Black "Kalyoncu, Beren"]
[Result "1-0"]
[ECO "C02"]
[WhiteElo "1954"]
[BlackElo "1737"]
[Annotator "NA RC"]
[PlyCount "133"]
[EventDate "2024.05.18"]
[EventType "swiss"]
[EventCountry "TUR"]
[SourceTitle "playchess.com"]
[Source "ChessBase"]
[SourceQuality "1"]
[TimeControl "5400+30"]

1. e4 {[%emt 0:01:00]} e6 {[%emt 0:01:00]} 2. d4 {[%emt 0:00:00]} d5 {[%emt 0:00:30]} 3. e5 {[%emt 0:00:00]} c5 {[%emt 0:00:00]} 4. c3 {[%emt 0:00:30]} Nc6 {[%emt 0:00:00]} 5. Nf3 {[%emt 0:00:00]} Qb6 {[%emt 0:00:00]} 6. a3 {[%emt 0:00:00]} Bd7 {[%emt 0:00:00]} 7. b4 {[%emt 0:00:30]} cxd4 {[%emt 0:00:30]} 8. cxd4 {[%emt 0:00:00]} Rc8 {[%emt 0:00:30]} 9. Bb2 {[%emt 0:00:00]} Na5 {[%emt 0:00:30]} 10. Nbd2 {[%emt 0:00:30]} Nc4 {[%emt 0:00:30]} 11. Nxc4 {[%emt 0:00:30]} dxc4 {[%emt 0:00:30]} 12. Rc1 {[%emt 0:00:00]} Qa6 {[%emt 0:00:30]} 13. d5 {[%emt 0:00:00]} exd5 {[%emt 0:00:30]} 14. Qxd5 {[%emt 0:00:30]} Ne7 {[%emt 0:02:30]} 15. Qe4 {[%emt 0:03:30]} b5 {[%emt 0:04:30]} 16. Be2 {[%emt 0:02:30]} Qg6 {[%emt 0:10:30]} 17. Qd4 {[%emt 0:04:30]} Nc6 {[%emt 0:03:30]} 18. Qe3 {[%emt 0:04:30]} Be7 {[%emt 0:02:30]} 19. O-O {[%emt 0:03:30]} O-O {[%emt 0:06:30]} 20. Rfd1 {[%emt 0:03:30]} Bg4 {[%emt 0:02:30]} 21. Rd5 {[%emt 0:06:30]} a6 {[%emt 0:01:30]} 22. Rcd1 {[%emt 0:15:30]} h5 {[%emt 0:08:30]} 23. h3 {[%emt 0:03:30]} Be6 {[%emt 0:05:30]} 24. R5d2 {[%emt 0:02:30]} Rfd8 {[%emt 0:03:30]} 25. Nd4 {[%emt 0:06:30]} Nxd4 {[%emt 0:01:30]} 26. Bxd4 {[%emt 0:00:30]} Rd7 {[%emt 0:11:30]} 27. Kh2 {[%emt 0:05:30]} Rcd8 {[%emt 0:04:30]} 28. f4 {[%emt 0:05:30]} h4 {[%emt 0:01:30]} 29. Qc3 {[%emt 0:03:30]} Qe4 {[%emt 0:07:30]} 30. Be3 {[%emt 0:02:30]} Qg6 {[%emt 0:02:30]} 31. Bf2 {[%emt 0:01:30]} Qe4 {[%emt 0:01:37]} 32. Be3 {[%emt 0:01:30]} Qg6 {[%emt 0:00:13]} 33. Bf2 {[%emt 0:01:30]} Qe4 {[%emt 0:00:29]} 34. Qe3 {[%emt 0:01:30]} Qxe3 {[%emt 0:00:35]} 35. Bxe3 {[%emt 0:00:00]} Rxd2 {[%emt 0:00:23]} 36. Rxd2 {[%emt 0:00:00]} Rxd2 {[%emt 0:01:34]} 37. Bxd2 {[%emt 0:00:30]} Bd5 {[%emt 0:00:39]} 38. Bg4 {[%emt 0:00:00]} Bb7 {[%emt 0:00:31]} 39. Bd7 {[%emt 0:03:00]} Bd8 {[%emt 0:01:27]} 40. a4 {[%emt 0:03:30]} bxa4 {[%emt 0:00:04]} 41. Bxa4 {[%emt 0:00:30]} Bb6 {[%emt 0:00:04]} 42. Bc3 {[%emt 0:01:19]} Kf8 {[%emt 0:01:54]} 43. g3 {[%emt 0:02:23]} Bf2 {[%emt 0:00:36]} 44. gxh4 {[%emt 0:00:22]} g6 {[%emt 0:01:52]} 45. Bd1 {[%emt 0:02:59]} Ke7 {[%emt 0:01:51]} 46. h5 {[%emt 0:00:19]} gxh5 {[%emt 0:01:38]} 47. Bxh5 {[%emt 0:00:09]} Be4 {[%emt 0:00:48]} 48. Be2 {[%emt 0:00:18]} Bd3 {[%emt 0:00:44]} 49. Bf3 {[%emt 0:00:10]} Be3 {[%emt 0:00:30]} 50. Kg3 {[%emt 0:00:12]} Ke6 {[%emt 0:00:12]} 51. Bb7 {[%emt 0:01:58]} Kf5 {[%emt 0:00:30]} 52. Kf3 {[%emt 0:00:06]} Bb6 {[%emt 0:01:40]} 53. Bc8+ {[%emt 0:00:08]} Kg6 {[%emt 0:00:00]} 54. Bxa6 {[%emt 0:00:17]} Kh5 {[%emt 0:00:36]} 55. Bc8 {[%emt 0:00:26]} Kg6 {[%emt 0:00:42]} 56. Bb7 {[%emt 0:01:52]} Kf5 {[%emt 0:00:11]} 57. h4 {[%emt 0:00:14]} Bc2 {[%emt 0:01:34]} 58. Bc8+ {[%emt 0:00:27]} Kg6 {[%emt 0:00:15]} 59. Bd7 {[%emt 0:01:39]} Kh5 {[%emt 0:00:48]} 60. Bg4+ {[%emt 0:00:11]} Kg6 {[%emt 0:00:10]} 61. h5+ {[%emt 0:01:04]} Kh6 {[%emt 0:00:09]} 62. Ke2 {[%emt 0:02:00]} Bd3+ {[%emt 0:01:00]} 63. Kd2 {[%emt 0:00:22]} Bc7 {[%emt 0:02:41]} 64. Bd4 {[%emt 0:00:17]} f6 {[%emt 0:00:59]} 65. exf6 {[%emt 0:01:28]} Bxf4+ {[%emt 0:00:05]} 66. Be3 {[%emt 0:00:00]} Bxe3+ {[%emt 0:00:52]} 67. Kxe3 {[%emt 0:00:00]} 1-0

[Event "Turkish Youth Championship 2024"]
[Site "Samsun"]
[Date "2024.05.19"]
[Round "3"]
[White "Uzdemir, Ali Poyraz"]
[Black "Apaydin, Mehmet Kagan"]
[Result "1-0"]
[ECO "B55"]
[WhiteElo "1898"]
[BlackElo "1650"]
[Annotator "NA RC"]
[PlyCount "65"]
[EventDate "2024.05.18"]
[EventType "swiss"]
[EventCountry "TUR"]
[SourceTitle "playchess.com"]
[Source "ChessBase"]
[SourceQuality "1"]
[TimeControl "5400+30"]

1. e4 {[%emt 0:01:00]} c5 {[%emt 0:03:00]} 2. Nf3 {[%emt 0:00:00]} d6 {[%emt 0:00:00]} 3. d4 {[%emt 0:00:00]} cxd4 {[%emt 0:00:00]} 4. Nxd4 {[%emt 0:00:00]} Nf6 {[%emt 0:00:30]} 5. f3 {[%emt 0:00:00]} e5 {[%emt 0:00:30]} 6. Nb3 {[%emt 0:00:00]} d5 {[%emt 0:01:30]} 7. Bg5 {[%emt 0:00:00]} d4 {[%emt 0:00:30]} 8. c3 {[%emt 0:00:30]} Nc6 {[%emt 0:03:30]} 9. Bb5 {[%emt 0:00:00]} Be6 {[%emt 0:09:30]} 10. cxd4 {[%emt 0:01:00]} Bxb3 {[%emt 0:02:30]} 11. Qxb3 {[%emt 0:00:00]} Qxd4 {[%emt 0:05:30]} 12. Be3 {[%emt 0:01:00]} Qb4+ {[%emt 0:12:30]} 13. Nc3 {[%emt 0:01:30]} Bc5 {[%emt 0:05:30]} 14. Qxb4 {[%emt 0:01:30]} Bxb4 {[%emt 0:04:30]} 15. O-O {[%emt 0:01:30]} O-O {[%emt 0:02:30]} 16. Bxc6 {[%emt 0:01:30]} bxc6 {[%emt 0:00:30]} 17. Rac1 {[%emt 0:00:00]} Ba5 {[%emt 0:06:30]} 18. Na4 {[%emt 0:01:00]} Rfc8 {[%emt 0:00:30]} 19. a3 {[%emt 0:01:30]} Nd7 {[%emt 0:00:30]} 20. Rc2 {[%emt 0:02:30]} Rc7 {[%emt 0:06:30]} 21. Rfc1 {[%emt 0:04:30]} Rac8 {[%emt 0:01:30]} 22. b4 {[%emt 0:00:30]} Bb6 {[%emt 0:00:30]} 23. Kf2 {[%emt 0:00:00]} Kf8 {[%emt 0:00:30]} 24. Ke2 {[%emt 0:01:00]} Ke7 {[%emt 0:00:30]} 25. Nc5 {[%emt 0:01:30]} Bxc5 {[%emt 0:01:30]} 26. Bxc5+ {[%emt 0:00:30]} Ke6 {[%emt 0:01:30]} 27. g3 {[%emt 0:05:30]} h5 {[%emt 0:03:30]} 28. f4 {[%emt 0:00:30]} exf4 {[%emt 0:05:30]} 29. gxf4 {[%emt 0:00:00]} f5 {[%emt 0:07:00]} 30. e5 {[%emt 0:03:00]} Nxc5 {[%emt 0:00:47]} 31. Rxc5 {[%emt 0:00:30]} g5 {[%emt 0:00:21]} 32. b5 {[%emt 0:01:30]} gxf4 {[%emt 0:01:12]} 33. Rxc6+ {[%emt 0:00:30]} 1-0

[Event "Turkish Youth Championship 2024"]
[Site "Samsun"]
[Date "2024.05.19"]
[Round "3"]
[White "Buyuk, Ecrin Efsa"]
[Black "Bilgin, Ali Tugrul"]
[Result "0-1"]
[ECO "C00"]
[WhiteElo "1892"]
[BlackElo "1678"]
[Annotator "NA"]
[PlyCount "122"]
[EventDate "2024.05.18"]
[EventType "swiss"]
[EventCountry "TUR"]
[SourceTitle "playchess.com"]
[Source "ChessBase"]
[SourceQuality "1"]
[TimeControl "5400+30"]

1. e4 {[%emt 0:01:00]} e6 {[%emt 0:01:00]} 2. d3 {[%emt 0:00:00]} d5 {[%emt 0:00:30]} 3. Nd2 {[%emt 0:00:00]} c5 {[%emt 0:00:30]} 4. g3 {[%emt 0:00:00]} Nc6 {[%emt 0:00:00]} 5. Bg2 {[%emt 0:01:00]} Nf6 {[%emt 0:00:00]} 6. f4 {[%emt 0:00:30]} e5 {[%emt 0:00:00]} 7. fxe5 {[%emt 0:21:30]} Ng4 {[%emt 0:00:00]} 8. Nf1 {[%emt 0:06:30]} dxe4 {[%emt 0:00:00]} 9. Bxe4 {[%emt 0:02:30]} c4 {[%emt 0:04:00]} 10. Ne3 {[%emt 0:09:30]} Nxe3 {[%emt 0:16:30]} 11. Bxe3 {[%emt 0:00:30]} cxd3 {[%emt 0:00:00]} 12. Qxd3 {[%emt 0:06:30]} Qxd3 {[%emt 0:04:00]} 13. Bxd3 {[%emt 0:00:30]} Nxe5 {[%emt 0:00:30]} 14. Bb5+ {[%emt 0:00:00]} Nc6 {[%emt 0:05:30]} 15. Nf3 {[%emt 0:02:00]} a6 {[%emt 0:00:30]} 16. Ba4 {[%emt 0:00:30]} Be6 {[%emt 0:03:30]} 17. Nd4 {[%emt 0:22:30]} Bd5 {[%emt 0:04:30]} 18. O-O {[%emt 0:00:30]} Bc5 {[%emt 0:02:30]} 19. Nf5 {[%emt 0:00:00]} Bxe3+ {[%emt 0:01:30]} 20. Nxe3 {[%emt 0:00:00]} Be6 {[%emt 0:00:00]} 21. Nf5 {[%emt 0:00:30]} Bxf5 {[%emt 0:08:00]} 22. Rxf5 {[%emt 0:00:00]} f6 {[%emt 0:01:30]} 23. Rd5 {[%emt 0:06:00]} b5 {[%emt 0:03:30]} 24. Bb3 {[%emt 0:02:42]} Ke7 {[%emt 0:00:30]} 25. c4 {[%emt 0:02:35]} bxc4 {[%emt 0:00:30]} 26. Bxc4 {[%emt 0:00:04]} Ne5 {[%emt 0:00:30]} 27. Be2 {[%emt 0:02:09]} Rhc8 {[%emt 0:01:30]} 28. Rad1 {[%emt 0:01:58]} Rc2 {[%emt 0:00:00]} 29. R5d2 {[%emt 0:01:08]} Rac8 {[%emt 0:04:00]} 30. Kf2 {[%emt 0:04:25]} a5 {[%emt 0:02:30]} 31. Ke3 {[%emt 0:01:29]} R2c5 {[%emt 0:01:30]} 32. h3 {[%emt 0:01:28]} R8c7 {[%emt 0:01:30]} 33. g4 {[%emt 0:01:18]} a4 {[%emt 0:00:30]} 34. Rd4 {[%emt 0:01:25]} a3 {[%emt 0:00:30]} 35. bxa3 {[%emt 0:02:09]} Rc3+ {[%emt 0:00:00]} 36. Bd3 {[%emt 0:01:03]} Rxa3 {[%emt 0:00:00]} 37. h4 {[%emt 0:01:24]} Rxa2 {[%emt 0:00:30]} 38. Bxh7 {[%emt 0:00:20]} Rc3+ {[%emt 0:03:30]} 39. Bd3 {[%emt 0:00:26]} Rh2 {[%emt 0:00:30]} 40. h5 {[%emt 0:01:06]} Rg2 {[%emt 0:01:30]} 41. g5 {[%emt 0:01:17]} Rxg5 {[%emt 0:00:30]} 42. Ke4 {[%emt 0:00:26]} Rxd3 {[%emt 0:00:30]} 43. R1xd3 {[%emt 0:00:14]} Nxd3 {[%emt 0:00:30]} 44. Rxd3 {[%emt 0:00:26]} Rxh5 {[%emt 0:00:00]} 45. Ra3 {[%emt 0:00:39]} Kf7 {[%emt 0:01:00]} 46. Ra7+ {[%emt 0:01:04]} Kg6 {[%emt 0:00:00]} 47. Kf4 {[%emt 0:00:00]} Rh4+ {[%emt 0:01:00]} 48. Kg3 {[%emt 0:00:00]} Rc4 {[%emt 0:00:00]} 49. Rb7 {[%emt 0:00:08]} Kh6 {[%emt 0:00:00]} 50. Rf7 {[%emt 0:00:22]} Rc6 {[%emt 0:00:30]} 51. Kf4 {[%emt 0:01:02]} g6 {[%emt 0:00:30]} 52. Ke4 {[%emt 0:00:10]} Kg5 {[%emt 0:00:30]} 53. Re7 {[%emt 0:01:04]} Rc4+ {[%emt 0:00:30]} 54. Kd5 {[%emt 0:00:00]} Rf4 {[%emt 0:00:30]} 55. Re1 {[%emt 0:00:19]} f5 {[%emt 0:00:30]} 56. Rg1+ {[%emt 0:00:08]} Rg4 {[%emt 0:00:00]} 57. Rf1 {[%emt 0:00:16]} Re4 {[%emt 0:01:00]} 58. Rg1+ {[%emt 0:00:30]} Kf6 {[%emt 0:00:00]} 59. Rh1 {[%emt 0:00:00]} Re5+ {[%emt 0:00:00]} 60. Kd4 {[%emt 0:00:00]} f4 {[%emt 0:00:30]} 61. Rh8 {[%emt 0:00:20]} Re1 {[%emt 0:00:30]} 0-1

[Event "Turkish Youth Championship 2024"]
[Site "Samsun"]
[Date "2024.05.19"]
[Round "3"]
[White "Selvi, Kaan"]
[Black "Konyar, Enver"]
[Result "1-0"]
[ECO "B12"]
[WhiteElo "1881"]
[BlackElo "1606"]
[Annotator "NA"]
[PlyCount "115"]
[EventDate "2024.05.18"]
[EventType "swiss"]
[EventCountry "TUR"]
[SourceTitle "playchess.com"]
[Source "ChessBase"]
[SourceQuality "1"]
[TimeControl "5400+30"]

1. e4 {[%emt 0:02:00]} c6 {[%emt 0:01:00]} 2. d4 {[%emt 0:00:30]} d5 {[%emt 0:00:30]} 3. e5 {[%emt 0:00:00]} c5 {[%emt 0:00:00]} 4. Nf3 {[%emt 0:00:00]} cxd4 {[%emt 0:01:00]} 5. Nxd4 {[%emt 0:07:30]} Nc6 {[%emt 0:00:30]} 6. Bb5 {[%emt 0:02:30]} Qc7 {[%emt 0:01:30]} 7. O-O {[%emt 0:09:30]} e6 {[%emt 0:00:30]} 8. c4 {[%emt 0:01:30]} Nge7 {[%emt 0:00:30]} 9. Nc3 {[%emt 0:04:30]} a6 {[%emt 0:02:30]} 10. cxd5 {[%emt 0:05:30]} Nxd5 {[%emt 0:04:30]} 11. Nxd5 {[%emt 0:00:30]} exd5 {[%emt 0:00:30]} 12. Nxc6 {[%emt 0:04:30]} bxc6 {[%emt 0:00:30]} 13. Ba4 {[%emt 0:00:30]} Bd7 {[%emt 0:01:30]} 14. Bg5 {[%emt 0:07:30]} Be7 {[%emt 0:01:30]} 15. Bxe7 {[%emt 0:02:30]} Kxe7 {[%emt 0:00:30]} 16. Rc1 {[%emt 0:00:30]} Rhc8 {[%emt 0:05:30]} 17. Qd3 {[%emt 0:01:30]} g6 {[%emt 0:08:30]} 18. Qf3 {[%emt 0:05:30]} c5 {[%emt 0:03:30]} 19. Bb3 {[%emt 0:06:30]} Be6 {[%emt 0:03:30]} 20. Bxd5 {[%emt 0:02:30]} Bxd5 {[%emt 0:00:00]} 21. Qxd5 {[%emt 0:00:30]} Rd8 {[%emt 0:00:00]} 22. Rxc5 {[%emt 0:04:30]} Rxd5 {[%emt 0:01:30]} 23. Rxc7+ {[%emt 0:00:30]} Kf8 {[%emt 0:00:00]} 24. e6 {[%emt 0:04:30]} fxe6 {[%emt 0:01:00]} 25. Rxh7 {[%emt 0:00:30]} Kg8 {[%emt 0:00:30]} 26. Re7 {[%emt 0:00:30]} Rd2 {[%emt 0:00:30]} 27. Rb1 {[%emt 0:03:30]} Rc8 {[%emt 0:02:30]} 28. h4 {[%emt 0:06:05]} Rcc2 {[%emt 0:01:30]} 29. Rxe6 {[%emt 0:00:20]} Rxf2 {[%emt 0:01:30]} 30. Rxg6+ {[%emt 0:00:39]} Kh7 {[%emt 0:00:30]} 31. Rg4 {[%emt 0:00:35]} Kh6 {[%emt 0:00:30]} 32. Kh2 {[%emt 0:00:39]} Kh5 {[%emt 0:00:30]} 33. Kh3 {[%emt 0:00:18]} Rfe2 {[%emt 0:01:30]} 34. Rd1 {[%emt 0:03:04]} Rxb2 {[%emt 0:00:30]} 35. Rg5+ {[%emt 0:03:09]} Kh6 {[%emt 0:00:00]} 36. Rd6+ {[%emt 0:00:00]} Kh7 {[%emt 0:00:00]} 37. Rxa6 {[%emt 0:00:00]} Rxa2 {[%emt 0:01:30]} 38. Rxa2 {[%emt 0:00:00]} Rxa2 {[%emt 0:00:00]} 39. g3 {[%emt 0:00:29]} Kh6 {[%emt 0:00:00]} 40. Rb5 {[%emt 0:00:03]} Ra3 {[%emt 0:00:30]} 41. Rf5 {[%emt 0:02:05]} Ra4 {[%emt 0:00:00]} 42. Rf6+ {[%emt 0:01:06]} Kg7 {[%emt 0:00:00]} 43. Rb6 {[%emt 0:00:09]} Rc4 {[%emt 0:00:30]} 44. h5 {[%emt 0:00:05]} Ra4 {[%emt 0:00:30]} 45. g4 {[%emt 0:00:31]} Ra5 {[%emt 0:00:00]} 46. Kh4 {[%emt 0:00:18]} Rc5 {[%emt 0:00:00]} 47. Rb7+ {[%emt 0:00:24]} Kh8 {[%emt 0:00:00]} 48. h6 {[%emt 0:00:00]} Rc1 {[%emt 0:00:00]} 49. Kh5 {[%emt 0:00:23]} Rc5+ {[%emt 0:00:30]} 50. g5 {[%emt 0:00:30]} Ra5 {[%emt 0:00:00]} 51. Rf7 {[%emt 0:00:14]} Rb5 {[%emt 0:00:00]} 52. Kg6 {[%emt 0:01:22]} Rb8 {[%emt 0:00:30]} 53. Rf5 {[%emt 0:02:20]} Ra8 {[%emt 0:00:00]} 54. Kh5 {[%emt 0:00:18]} Rb8 {[%emt 0:00:00]} 55. g6 {[%emt 0:00:45]} Ra8 {[%emt 0:00:30]} 56. h7 {[%emt 0:01:18]} Rb8 {[%emt 0:00:30]} 57. Kh6 {[%emt 0:00:48]} Rb5 {[%emt 0:00:30]} 58. Rf8# {[%emt 0:00:13]} 1-0

[Event "Turkish Youth Championship 2024"]
[Site "Samsun"]
[Date "2024.05.19"]
[Round "3"]
[White "Gokturk, Murat Kutay"]
[Black "Alaybeyoglu, Ayberk"]
[Result "1-0"]
[ECO "B17"]
[WhiteElo "1862"]
[BlackElo "1496"]
[Annotator "NA"]
[PlyCount "22"]
[EventDate "2024.05.18"]
[EventType "swiss"]
[EventCountry "TUR"]
[SourceTitle "playchess.com"]
[Source "ChessBase"]
[SourceQuality "1"]
[TimeControl "5400+30"]

1. e4 {[%emt 0:01:00]} c6 {[%emt 0:14:00]} 2. d4 {[%emt 0:00:00]} d5 {[%emt 0:00:30]} 3. Nc3 {[%emt 0:00:00]} dxe4 {[%emt 0:01:30]} 4. Nxe4 {[%emt 0:00:00]} Nd7 {[%emt 0:00:30]} 5. Nf3 {[%emt 0:00:00]} Ngf6 {[%emt 0:00:30]} 6. Nxf6+ {[%emt 0:00:30]} Nxf6 {[%emt 0:00:30]} 7. Bc4 {[%emt 0:00:30]} Bg4 {[%emt 0:00:30]} 8. Ne5 {[%emt 0:00:30]} Be6 {[%emt 0:00:30]} 9. Bxe6 {[%emt 0:00:30]} fxe6 {[%emt 0:01:30]} 10. Bg5 {[%emt 0:10:30]} g6 {[%emt 0:05:30]} 11. Qd3 {[%emt 0:13:30]} Ng8 {[%emt 0:03:30]} 1-0

[Event "Turkish Youth Championship 2024"]
[Site "Samsun"]
[Date "2024.05.19"]
[Round "3"]
[White "Gulbas, Isa"]
[Black "Topuz, Mirac Melih"]
[Result "0-1"]
[ECO "B23"]
[WhiteElo "1813"]
[BlackElo "2079"]
[Annotator "NA RC"]
[PlyCount "96"]
[EventDate "2024.05.18"]
[EventType "swiss"]
[EventCountry "TUR"]
[SourceTitle "playchess.com"]
[Source "ChessBase"]
[SourceQuality "1"]
[TimeControl "5400+30"]

1. e4 {[%emt 0:12:00]} c5 {[%emt 0:01:00]} 2. Nc3 {[%emt 0:00:30]} Nc6 {[%emt 0:00:30]} 3. Bb5 {[%emt 0:01:30]} Nd4 {[%emt 0:00:30]} 4. Nf3 {[%emt 0:00:30]} a6 {[%emt 0:00:00]} 5. Bd3 {[%emt 0:00:30]} g6 {[%emt 0:00:00]} 6. Nxd4 {[%emt 0:00:30]} cxd4 {[%emt 0:00:00]} 7. Ne2 {[%emt 0:00:00]} d5 {[%emt 0:00:00]} 8. e5 {[%emt 0:06:00]} Bg7 {[%emt 0:04:30]} 9. f4 {[%emt 0:01:30]} f6 {[%emt 0:02:30]} 10. exf6 {[%emt 0:06:30]} Nxf6 {[%emt 0:00:30]} 11. O-O {[%emt 0:04:30]} O-O {[%emt 0:02:30]} 12. b3 {[%emt 0:09:30]} Ne4 {[%emt 0:00:30]} 13. Ng3 {[%emt 0:08:30]} Bf5 {[%emt 0:32:30]} 14. Qe2 {[%emt 0:03:30]} Rc8 {[%emt 0:02:30]} 15. Bb2 {[%emt 0:17:30]} Qb6 {[%emt 0:02:30]} 16. Kh1 {[%emt 0:05:30]} Rc6 {[%emt 0:11:30]} 17. a4 {[%emt 0:04:33]} Re6 {[%emt 0:15:30]} 18. Nxf5 {[%emt 0:04:38]} gxf5 {[%emt 0:00:30]} 19. Qf3 {[%emt 0:03:21]} Qa5 {[%emt 0:05:24]} 20. Rad1 {[%emt 0:03:41]} Qb6 {[%emt 0:03:27]} 21. Ba3 {[%emt 0:00:52]} Rf7 {[%emt 0:01:52]} 22. Be2 {[%emt 0:03:00]} Rg6 {[%emt 0:01:09]} 23. d3 {[%emt 0:00:52]} Nc3 {[%emt 0:02:15]} 24. Rde1 {[%emt 0:00:33]} Re6 {[%emt 0:01:24]} 25. Qf2 {[%emt 0:01:01]} Qc7 {[%emt 0:03:35]} 26. Bh5 {[%emt 0:00:54]} Rff6 {[%emt 0:00:05]} 27. g3 {[%emt 0:00:55]} Rh6 {[%emt 0:03:21]} 28. Rxe6 {[%emt 0:00:13]} Rxe6 {[%emt 0:00:30]} 29. Re1 {[%emt 0:00:27]} Qd7 {[%emt 0:01:28]} 30. Kg2 {[%emt 0:00:50]} Kf8 {[%emt 0:01:58]} 31. Bc5 {[%emt 0:00:47]} Rxe1 {[%emt 0:01:18]} 32. Qxe1 {[%emt 0:00:01]} b5 {[%emt 0:00:39]} 33. Qg1 {[%emt 0:00:58]} bxa4 {[%emt 0:00:33]} 34. Bxd4 {[%emt 0:00:16]} Qc6 {[%emt 0:00:30]} 35. Bxg7+ {[%emt 0:01:25]} Kxg7 {[%emt 0:00:01]} 36. Qd4+ {[%emt 0:00:27]} Qf6 {[%emt 0:00:00]} 37. Qxf6+ {[%emt 0:00:11]} Kxf6 {[%emt 0:00:02]} 38. bxa4 {[%emt 0:00:30]} Nxa4 {[%emt 0:00:30]} 39. c4 {[%emt 0:00:30]} Nb2 {[%emt 0:00:30]} 40. cxd5 {[%emt 0:00:30]} a5 {[%emt 0:00:30]} 41. Be8 {[%emt 0:00:30]} a4 {[%emt 0:00:30]} 42. Bxa4 {[%emt 0:00:30]} Nxa4 {[%emt 0:00:30]} 43. Kf3 {[%emt 0:00:30]} Nc3 {[%emt 0:00:30]} 44. h3 {[%emt 0:00:30]} Nxd5 {[%emt 0:00:30]} 45. g4 {[%emt 0:00:30]} Ke6 {[%emt 0:00:30]} 46. h4 {[%emt 0:00:30]} fxg4+ {[%emt 0:00:30]} 47. Kxg4 {[%emt 0:00:30]} Kf6 {[%emt 0:00:30]} 48. d4 {[%emt 0:00:30]} Ne3+ {[%emt 0:00:30]} 0-1

[Event "Turkish Youth Championship 2024"]
[Site "Samsun"]
[Date "2024.05.19"]
[Round "3"]
[White "Nuhoglu, Yusahan"]
[Black "Ozgun, Yigit Deniz"]
[Result "0-1"]
[ECO "E62"]
[WhiteElo "1792"]
[BlackElo "1917"]
[Annotator "NA RC"]
[PlyCount "32"]
[EventDate "2024.05.18"]
[EventType "swiss"]
[EventCountry "TUR"]
[SourceTitle "playchess.com"]
[Source "ChessBase"]
[SourceQuality "1"]
[TimeControl "5400+30"]

1. Nf3 {[%emt 0:01:00]} Nf6 {[%emt 0:02:00]} 2. g3 {[%emt 0:00:00]} g6 {[%emt 0:03:30]} 3. Bg2 {[%emt 0:00:00]} Bg7 {[%emt 0:00:00]} 4. O-O {[%emt 0:00:00]} O-O {[%emt 0:00:00]} 5. c4 {[%emt 0:00:00]} d6 {[%emt 0:00:30]} 6. Nc3 {[%emt 0:00:30]} Nc6 {[%emt 0:00:30]} 7. d4 {[%emt 0:00:00]} Nd7 {[%emt 0:02:30]} 8. e4 {[%emt 0:01:00]} Nb6 {[%emt 0:04:30]} 9. b3 {[%emt 0:01:30]} Bg4 {[%emt 0:00:30]} 10. Be3 {[%emt 0:00:30]} e5 {[%emt 0:00:30]} 11. d5 {[%emt 0:09:30]} Nd4 {[%emt 0:00:00]} 12. Rc1 {[%emt 0:00:30]} f5 {[%emt 0:03:00]} 13. exf5 {[%emt 0:02:30]} Rxf5 {[%emt 0:00:30]} 14. Bxd4 {[%emt 0:00:30]} exd4 {[%emt 0:00:00]} 15. Ne4 {[%emt 0:00:30]} Qf8 {[%emt 0:00:00]} 16. Neg5 {[%emt 0:03:30]} Rxg5 {[%emt 0:00:30]} 0-1

[Event "Turkish Youth Championship 2024"]
[Site "Samsun"]
[Date "2024.05.19"]
[Round "3"]
[White "Sadik, Muhammed Selim"]
[Black "Buyuk, Eymen Eren"]
[Result "1/2-1/2"]
[ECO "D13"]
[WhiteElo "1734"]
[BlackElo "1999"]
[Annotator "NA RC"]
[PlyCount "87"]
[EventDate "2024.05.18"]
[EventType "swiss"]
[EventCountry "TUR"]
[SourceTitle "playchess.com"]
[Source "ChessBase"]
[SourceQuality "1"]
[TimeControl "5400+30"]

1. d4 {[%emt 0:01:00]} d5 {[%emt 0:01:00]} 2. c4 {[%emt 0:00:30]} c6 {[%emt 0:00:30]} 3. Nf3 {[%emt 0:00:30]} Nf6 {[%emt 0:00:30]} 4. Nc3 {[%emt 0:00:30]} Bf5 {[%emt 0:00:00]} 5. cxd5 {[%emt 0:00:00]} cxd5 {[%emt 0:00:00]} 6. Qb3 {[%emt 0:00:00]} Qb6 {[%emt 0:01:30]} 7. Nxd5 {[%emt 0:00:00]} Nxd5 {[%emt 0:00:00]} 8. Qxd5 {[%emt 0:00:00]} Qb4+ {[%emt 0:00:00]} 9. Nd2 {[%emt 0:02:30]} e6 {[%emt 0:00:00]} 10. Qc4 {[%emt 0:00:30]} Qxc4 {[%emt 0:07:00]} 11. Nxc4 {[%emt 0:00:30]} Nc6 {[%emt 0:00:30]} 12. e3 {[%emt 0:01:30]} Nb4 {[%emt 0:00:00]} 13. Na3 {[%emt 0:00:30]} Nd3+ {[%emt 0:00:00]} 14. Bxd3 {[%emt 0:00:30]} Bxd3 {[%emt 0:00:00]} 15. Kd2 {[%emt 0:10:30]} Ba6 {[%emt 0:01:00]} 16. Nc2 {[%emt 0:00:30]} Be7 {[%emt 0:03:30]} 17. b3 {[%emt 0:00:30]} Rc8 {[%emt 0:00:30]} 18. a4 {[%emt 0:03:30]} b6 {[%emt 0:03:30]} 19. Ba3 {[%emt 0:00:30]} Bf6 {[%emt 0:00:30]} 20. Nb4 {[%emt 0:04:30]} Bb7 {[%emt 0:00:30]} 21. f3 {[%emt 0:04:30]} e5 {[%emt 0:10:30]} 22. dxe5 {[%emt 0:03:30]} Bxe5 {[%emt 0:01:30]} 23. Rac1 {[%emt 0:01:30]} O-O {[%emt 0:16:30]} 24. Rxc8 {[%emt 0:03:30]} Rxc8 {[%emt 0:00:30]} 25. Rc1 {[%emt 0:00:30]} Rd8+ {[%emt 0:02:30]} 26. Ke2 {[%emt 0:00:30]} Bxh2 {[%emt 0:00:30]} 27. Rd1 {[%emt 0:08:30]} Rxd1 {[%emt 0:04:30]} 28. Kxd1 {[%emt 0:00:30]} g5 {[%emt 0:00:00]} 29. Bb2 {[%emt 0:03:30]} Bd6 {[%emt 0:02:00]} 30. Bc3 {[%emt 0:06:30]} g4 {[%emt 0:00:30]} 31. fxg4 {[%emt 0:01:30]} Bxg2 {[%emt 0:00:30]} 32. Ke2 {[%emt 0:00:30]} Be4 {[%emt 0:00:30]} 33. Nd3 {[%emt 0:00:30]} h6 {[%emt 0:00:30]} 34. a5 {[%emt 0:03:30]} b5 {[%emt 0:01:30]} 35. Bd4 {[%emt 0:01:30]} a6 {[%emt 0:09:30]} 36. Nc5 {[%emt 0:00:30]} Bd5 {[%emt 0:00:00]} 37. b4 {[%emt 0:00:30]} Bxc5 {[%emt 0:01:00]} 38. Bxc5 {[%emt 0:01:30]} Kg7 {[%emt 0:00:30]} 39. Kf2 {[%emt 0:00:00]} Kg6 {[%emt 0:00:30]} 40. Kg3 {[%emt 0:00:00]} Kg5 {[%emt 0:00:00]} 41. Be7+ {[%emt 0:00:30]} f6 {[%emt 0:00:00]} 42. Bd8 {[%emt 0:00:00]} Be4 {[%emt 0:00:30]} 43. Be7 {[%emt 0:00:00]} Bc2 {[%emt 0:00:00]} 44. Bd6 {[%emt 0:00:30]} 1/2-1/2